bitfinex-derivatives/quotes_SOLF0:USTF0_20241127
["timestamp","ask_amount","ask_price","bid_price","bid_amount"]
[1732684772803,2.1842,228.99,228.9,2.5492]
[1732684773298,0.63192,228.98,228.92,2.1849]
[1732684773499,0.63192,228.98,228.9,2.5492]
[1732684774007,2.3,229.03,228.96,2.1845]
[1732684774194,0.63196361,229.02,228.96,2.1845]
[1732684774392,0.63196361,229.01,228.94,2.3]
[1732684774598,0.63190811,229.0,228.99,2.1842]
[1732684774900,10.09790251,229.07,228.99,2.1842]
[1732684775205,0.63195658,229.06,229.0,2.1841]
[1732684775605,0.63195658,229.06,228.93,12.39790251]
[1732684775804,2.81572437,229.05,228.93,12.39790251]
[1732684776105,0.63201822,229.04,228.93,12.39790251]
[1732684776304,0.63201822,229.04,228.96,10.09790251]
[1732684776506,0.63202437,229.05,228.96,10.09790251]
[1732684776806,0.63202437,229.05,228.93,2.3]
[1732684776807,0.63202437,229.05,228.99,10.09790251]
[1732684777102,0.63202437,229.05,229.04,2.1837]
[1732684778101,0.63202437,229.05,228.8,2.21270664]
[1732684778404,0.63200462,229.04,228.92,2.4487]
[1732684778706,2.1839,229.03,228.98,2.1843]
[1732684779106,0.63202437,229.05,228.98,2.1843]
[1732684779302,2.81581141,229.04,228.93,1.3274]
[1732684779503,2.1838,229.04,228.94,10.09790251]
[1732684780001,2.1838,229.04,228.99,2.1842]
[1732684781107,0.63202437,229.05,228.93,1.3274]
[1732684781509,0.63202437,229.05,228.98,10.09790251]
[1732684782007,0.63202437,229.05,228.94,10.09790251]
[1732684782603,2.81572437,229.05,228.94,10.09790251]
[1732684783309,2.81572437,229.05,228.97,2.1844]
[1732684783608,2.1837,229.04,228.97,2.3]
[1732684784410,0.63202437,229.05,229.0,2.1841]
[1732684784603,0.63202437,229.05,228.97,2.3]
[1732684784604,10.72937927,229.04,228.8,2.3]
[1732684784809,0.63147676,229.03,228.86,10.09790251]
[1732684785003,10.09790251,229.01,228.86,10.09790251]
[1732684785204,0.63147441,229.0,228.87,2.3]
[1732684785602,2.1845,228.97,228.91,2.185]
[1732684786609,2.1845,228.96,228.9,2.185]
[1732684787308,2.1844,228.97,228.91,2.185]
[1732684788104,10.09790251,228.93,228.69,2.3]
[1732684788412,2.93134436,228.92,228.76,10.09790251]
[1732684788610,0.63142775,228.91,228.76,12.39790251]
[1732684789008,0.63142775,228.91,228.77,2.3]
[1732684789203,2.1854,228.87,228.8,2.186]
[1732684790207,10.09790251,228.93,228.77,2.3]
[1732684790408,2.185,228.91,228.8,10.09790251]
[1732684791212,2.185,228.91,228.84,2.1856]
[1732684791713,12.39790251,229.09,228.93,10.09790251]
[1732684791906,10.09790251,229.01,228.84,2.18318007]
[1732684792108,2.1847,228.95,228.87,2.1853]
[1732684792409,2.3,229.0,228.87,2.1853]
[1732684792609,2.185,228.91,228.84,10.09790251]
[1732684793307,2.185,228.91,228.85,2.1855]
[1732684795318,2.1849,228.93,228.87,2.1853]
[1732684795508,2.3,228.95,228.71,1.09335376]
[1732684795713,2.3,228.95,228.74,10.09790251]
[1732684795714,10.09790251,228.9,228.74,10.09790251]
[1732684795912,2.3,228.89,228.74,10.09790251]
[1732684796711,2.3,228.89,228.72,1.3337]
[1732684796914,2.3,228.89,228.72,11.43160251]
[1732684796915,1.2271,228.88,228.72,11.43160251]
[1732684797319,2.3,228.87,228.75,10.09790251]
[1732684797912,2.3,228.87,228.78,2.1862]
[1732684798222,2.3,228.87,228.78,10.09790251]
[1732684798920,23.22790251,228.86,228.6,2.3]
[1732684799217,2.1863,228.78,228.68,10.09790251]
[1732684800320,2.1863,228.78,228.71,2.1869]
[1732684801221,2.3,228.79,228.69,2.6134]
[1732684801422,2.3,228.79,228.73,2.1866]
[1732684802229,4.4862,228.79,228.73,2.1866]
[1732684803022,2.3,228.79,228.6,1.3371]
[1732684803230,2.3,228.79,228.62,10.09790251]
[1732684804120,2.1866,228.74,228.65,2.1874]
[1732684804324,2.3,228.73,228.65,2.1874]
[1732684804633,2.3,228.73,228.62,10.09790251]
[1732684804834,2.3,228.73,228.67,2.1872]
[1732684805921,2.3,228.73,228.62,2.3]
[1732684806127,2.3,228.73,228.65,10.09790251]
[1732684806327,2.1866,228.75,228.65,10.09790251]
[1732684806522,2.1864,228.76,228.65,10.09790251]
[1732684806727,2.1864,228.76,228.7,2.187]
[1732684808130,4.4863,228.77,228.71,2.1868]
[1732684808527,1.3252,228.85,228.68,10.09790251]
[1732684808736,2.186,228.81,228.75,2.1865]
[1732684810336,4.4858,228.83,228.74,10.09790251]
[1732684810630,10.09790251,228.92,228.77,10.09790251]
[1732684810830,1.221,228.94,228.8,10.09790251]
[1732684811036,1.221,228.94,228.83,2.1857]
[1732684811233,1.221,228.94,228.81,2.3]
[1732684811428,2.185,228.91,228.84,2.1856]
[1732684811737,2.185,228.91,228.81,3.587]
[1732684812230,2.1849,228.92,228.81,3.587]
[1732684812536,22.09722159,228.97,228.83,10.09790251]
[1732684812730,2.1848,228.94,228.83,10.09790251]
[1732684813033,32.1951241,228.97,228.83,10.09790251]
[1732684813636,2.1847,228.94,228.83,10.09790251]
[1732684814140,32.1951241,228.97,228.83,10.09790251]
[1732684815034,10.09790251,228.94,228.81,1.287]
[1732684815234,10.09790251,228.91,228.79,1.2426]
[1732684815542,2.1853,228.88,228.79,3.4286]
[1732684815838,2.1853,228.88,228.79,1.2426]
[1732684816228,2.185,228.92,228.85,2.1855]
[1732684816434,22.09722159,228.97,228.84,2.3]
[1732684816631,0.63272819,228.96,228.85,2.3]
[1732684816933,0.63272819,228.96,228.85,2.1855]
[1732684817134,22.09722159,228.97,228.85,2.1855]
[1732684817437,22.09722159,228.97,228.87,2.1853]
[1732684818036,2.1849,228.92,228.85,2.1855]
[1732684818238,2.1849,228.92,228.84,2.3]
[1732684818437,22.09722159,228.97,228.84,2.3]
[1732684818634,2.1848,228.93,228.86,2.1854]
[1732684819036,22.09722159,228.97,228.84,2.3]
[1732684819236,0.63281092,228.96,228.84,2.3]
[1732684819933,22.09722159,228.97,228.84,2.3]
[1732684820539,17.37329318,229.02,228.84,2.3]
[1732684820737,0.63296493,228.99,228.85,1.2466]
[1732684821041,2.3,229.02,228.85,1.2466]
[1732684821242,2.1844,228.98,228.91,2.1849]
[1732684821440,16.14389318,229.06,228.92,2.3]
[1732684821742,2.1842,229.0,228.92,2.3]
[1732684821944,2.1842,229.0,228.69,271.14389318]
[1732684821945,2.3,228.99,228.78,2.3]
[1732684822138,19.07685839,228.98,228.81,1.2294]
[1732684822438,19.07685839,228.98,228.85,2.1856]
[1732684822439,2.185,228.91,228.85,2.1856]
[1732684823035,18.44389318,228.98,228.84,2.3]
[1732684823242,16.14389318,228.94,228.7,1.09347904]
[1732684823432,2.1858,228.83,228.76,2.1864]
[1732684823631,2.1858,228.83,228.76,4.4864]
[1732684823832,2.3,228.88,228.76,2.3]
[1732684824035,2.3,228.88,228.72,16.14389318]
[1732684824232,2.3,228.88,228.73,2.3]
[1732684825339,2.3,228.88,228.53,40.1736126]
[1732684825340,13.13,228.84,228.53,40.1736126]
[1732684825536,16.14389318,228.8,228.6,16.14389318]
[1732684825844,16.14389318,228.8,228.55,3.8778]
[1732684826035,16.14389318,228.8,228.59,18.44389318]
[1732684826443,16.14389318,228.8,228.6,1.309]
[1732684826741,16.14389318,228.8,228.63,2.1876]
[1732684826742,2.1868,228.72,228.63,2.1876]
[1732684826938,2.3,228.74,228.6,1.309]
[1732684827144,2.3,228.73,228.6,1.309]
[1732684827335,2.3,228.72,228.6,1.309]
[1732684828337,2.1873,228.68,228.6,1.309]
[1732684829240,2.188,228.6,228.51,2.1888]
[1732684830243,2.188,228.6,228.47,18.44389318]
[1732684830244,2.188,228.6,228.52,2.1887]
[1732684830543,2.1878,228.62,228.47,18.44389318]
[1732684830743,2.3,228.64,228.52,2.1886]
[1732684831149,2.1879,228.61,228.47,18.44389318]
[1732684831340,2.3,228.64,228.53,2.1886]
[1732684831739,2.3,228.64,228.47,16.14389318]
[1732684831947,2.3,228.64,228.48,2.3]
[1732684833146,16.14389318,228.52,228.33,6.01805733]
[1732684833338,16.14389318,228.52,228.27,3.28257064]
[1732684833339,3.8221,228.51,228.34,1.0952389]
[1732684833543,3.8221,228.51,228.29,16.14389318]
[1732684833544,2.1898,228.41,228.32,2.1906]
[1732684833740,2.48,228.46,228.3,2.48]
[1732684833953,2.48,228.48,228.3,2.48]
[1732684834241,2.48,228.48,228.37,2.1901]
[1732684834444,2.48,228.48,228.33,16.14389318]
[1732684834943,2.48,228.48,228.34,2.48]
[1732684835142,2.48,228.48,228.15,24.07222934]
[1732684835341,16.14389318,228.43,228.24,16.14389318]
[1732684835646,2.48,228.42,228.24,16.14389318]
[1732684835844,2.1901,228.38,228.29,2.1909]
[1732684836946,2.48,228.42,228.28,2.48]
[1732684837147,2.1899,228.4,228.3,2.1907]
[1732684837449,2.48,228.42,228.3,2.1907]
[1732684837642,2.19,228.39,228.31,2.1907]
[1732684838342,2.1898,228.41,228.31,2.1907]
[1732684838546,2.48,228.42,228.3,2.48]
[1732684838946,16.14389318,228.47,228.34,2.1904]
[1732684838947,2.1896,228.43,228.34,2.1904]
[1732684839248,18.62389318,228.47,228.3,2.48]
[1732684839441,4.6693,228.47,228.32,16.14389318]
[1732684839647,1.0128,228.5,228.39,2.1899]
[1732684840650,19.98599318,228.51,228.4,2.1898]
[1732684840651,2.189,228.49,228.4,2.1898]
[1732684840948,16.14389318,228.47,228.14,2.21414522]
[1732684841142,16.14389318,228.47,228.24,16.14389318]
[1732684841347,16.14389318,228.47,228.25,2.5]
[1732684841548,2.1899,228.4,228.32,2.1906]
[1732684841949,2.5,228.43,228.29,2.5]
[1732684842346,2.5,228.43,228.3,1.2267]
[1732684843350,2.5,228.43,228.33,2.1904]
[1732684843351,2.1898,228.41,228.33,2.1904]
[1732684843545,16.14389318,228.47,228.3,1.2267]
[1732684843748,2.1897,228.42,228.35,2.1903]
[1732684844052,2.5,228.46,228.3,1.2267]
[1732684844354,2.1896,228.43,228.36,2.1902]
[1732684844541,2.5,228.46,228.19,2.5]
[1732684844746,2.5,228.46,228.24,18.73229318]
[1732684844946,2.5,228.46,228.31,2.1907]
[1732684845652,2.5,228.46,228.24,21.23229318]
[1732684846150,2.1897,228.42,228.35,2.1903]
[1732684846854,2.5,228.46,228.35,2.1903]
[1732684846855,2.1896,228.43,228.35,2.1903]
[1732684847056,2.5,228.46,228.35,2.1903]
[1732684847452,2.1896,228.44,228.31,1.2934]
[1732684847651,17.48599318,228.51,228.32,16.14389318]
[1732684847854,2.5,228.5,228.32,16.14389318]
[1732684849154,16.14389318,228.47,228.31,1.2934]
[1732684849351,16.14389318,228.42,228.24,2.5884]
[1732684849546,2.5,228.41,228.24,2.5884]
[1732684850054,2.5,228.41,228.29,2.1909]
[1732684850249,2.5,228.41,228.2,2.5]
[1732684850457,3.8381,228.41,228.21,2.5]
[1732684850658,2.1905,228.33,228.21,2.5]
[1732684850952,2.5,228.34,228.16,2.5]
[1732684851157,16.14389318,228.38,228.16,2.5]
[1732684851158,2.5,228.33,228.17,1.2687]
[1732684851358,2.5,228.33,228.18,16.14389318]
[1732684851656,2.5,228.33,228.25,2.1912]
[1732684851657,2.1906,228.32,228.25,2.1912]
[1732684852049,2.5,228.33,228.18,16.14389318]
[1732684852254,2.5,228.36,228.22,16.14389318]
[1732684852453,2.5,228.36,228.23,2.5]
[1732684852650,2.5,228.36,228.15,2.6685]
[1732684853057,2.5,228.36,228.16,16.14389318]
[1732684853258,2.1915,228.23,228.15,2.1922]
[1732684853453,2.5,228.25,228.11,1.3083]
[1732684854355,2.1916,228.22,228.11,1.3083]
[1732684855250,2.1916,228.22,228.15,2.1922]
[1732684855649,2.5,228.25,228.11,1.3083]
[1732684855856,2.5,228.25,228.17,2.192]
[1732684856360,2.5,228.25,228.15,2.1922]
[1732684856562,2.5,228.25,228.11,16.14389318]
[1732684856757,2.5,228.25,228.11,17.46079318]
[1732684857663,2.5,228.25,228.11,1.3169]
[1732684860359,4.6913,228.25,228.11,1.3169]
[1732684860859,2.5,228.25,228.11,1.3169]
[1732684861458,2.1921,228.17,228.11,2.1926]
[1732684861660,15.63,228.25,228.09,1.2723]
[1732684862661,2.1921,228.17,228.1,2.1927]
[1732684862861,2.1921,228.17,228.06,2.5]
[1732684863262,2.52,228.19,228.06,2.5]
[1732684863464,2.192,228.18,228.12,2.1925]
[1732684863765,2.52,228.19,228.06,2.5]
[1732684864561,2.192,228.18,228.06,2.5]
[1732684865261,2.192,228.18,228.01,2.6055]
[1732684865262,16.14389318,228.18,228.01,1.2917]
[1732684865661,2.1924,228.14,228.01,1.2917]
[1732684865867,16.14389318,228.18,228.01,1.2917]
[1732684866165,2.1924,228.14,228.08,2.1929]
[1732684867072,2.1924,228.14,228.01,1.2917]
[1732684867368,2.1929,228.09,228.04,2.1933]
[1732684867569,4.7129,228.09,228.04,2.1933]
[1732684867963,2.52,228.09,228.07,2.193]
[1732684868170,2.4591,228.16,227.97,1.2307]
[1732684868465,2.52,228.15,227.98,2.52]
[1732684869565,4.7123,228.15,228.1,2.1927]
[1732684869766,2.52,228.15,227.99,2.52]
[1732684869966,2.52,228.15,228.01,16.14389318]
[1732684870167,2.52,228.15,228.12,2.1925]
[1732684870368,2.52,228.17,228.06,2.52]
[1732684870561,2.52,228.19,228.07,1.2248]
[1732684870767,2.52,228.19,228.08,1.2187]
[1732684870962,16.14389318,228.14,227.93,121.5094023]
[1732684871162,16.14389318,227.99,227.88,121.5094023]
[1732684871365,16.14389318,227.99,227.91,2.1945]
[1732684871366,4.7139,227.98,227.91,2.1945]
[1732684871566,4.7139,227.98,227.87,1.2248]
[1732684871567,16.14389318,228.03,227.87,1.2248]
[1732684871774,2.52,228.02,227.87,1.2248]
[1732684872370,16.14389318,228.07,227.87,1.2248]
[1732684872674,1.3309,228.08,227.9,16.14389318]
[1732684872675,2.52,228.06,227.9,16.14389318]
[1732684873273,2.52,228.06,228.02,2.1935]
[1732684873972,2.1933,228.05,227.98,2.1938]
[1732684875175,2.1933,228.04,227.98,2.1938]
[1732684875370,2.1933,228.04,227.9,16.14389318]
[1732684876175,2.52,228.06,227.9,16.14389318]
[1732684876472,2.52,228.05,227.9,16.14389318]
[1732684876673,2.52,228.04,227.9,16.14389318]
[1732684876869,16.14389318,228.11,227.9,16.14389318]
[1732684877075,2.52,228.1,227.9,16.14389318]
[1732684877378,2.52,228.1,227.87,3.7448]
[1732684877577,2.52,228.1,227.9,16.14389318]
[1732684877782,15.65,228.1,227.9,16.14389318]
[1732684878273,2.1933,228.05,227.97,2.1939]
[1732684878477,2.52,228.04,227.97,2.1939]
[1732684878676,2.52,228.04,227.9,16.14389318]
[1732684880087,2.52,228.04,227.87,1.2248]
[1732684880285,18.66389318,228.04,227.87,1.2248]
[1732684880490,1.2913,228.03,227.87,1.2248]
[1732684880887,16.14389318,228.0,227.87,1.2248]
[1732684881282,2.1944,227.93,227.87,2.1949]
[1732684881487,2.52,227.92,227.81,16.14389318]
[1732684881787,2.52,227.92,227.8,3.8281]
[1732684882082,2.1946,227.91,227.8,3.8281]
[1732684882289,18.66389318,227.92,227.68,18.05417201]
[1732684882586,1.2913,227.9,227.72,1.2825]
[1732684882891,1.2913,227.9,227.73,1.09789147]
[1732684883084,2.1951,227.86,227.79,2.1957]
[1732684883283,1.2913,227.9,227.79,2.1957]
[1732684883284,2.52,227.85,227.79,2.1957]
[1732684883486,2.52,227.84,227.78,2.1958]
[1732684883687,2.52,227.84,227.72,1.2825]
[1732684883888,1.2913,227.9,227.72,1.2825]
[1732684884094,4.7148,227.89,227.72,1.2825]
[1732684884395,2.52,227.89,227.72,3.8025]
[1732684885088,2.52,227.89,227.71,1.309]
[1732684885089,29.27389318,227.81,227.6,24.07222934]
[1732684885290,2.52,227.8,227.61,2.40154066]
[1732684885492,47.35,228.1,227.72,16.14389318]
[1732684885683,2.5451,227.99,227.72,18.66389318]
[1732684885891,2.1945,227.92,227.79,2.1957]
[1732684886194,16.14389318,227.9,227.73,2.6254]
[1732684886386,2.52,227.91,227.73,18.76929318]
[1732684886992,2.52,227.91,227.84,2.1952]
[1732684887891,2.1944,227.93,227.84,2.1952]
[1732684888599,2.1944,227.93,227.85,2.1951]
[1732684889190,18.66389318,227.94,227.83,2.1953]
[1732684889388,18.66389318,227.94,227.79,2.52]
[1732684890394,2.1944,227.93,227.85,2.1951]
[1732684890596,2.1944,227.93,227.79,2.52]
[1732684890800,2.1944,227.93,227.84,2.1952]
[1732684891095,18.66389318,227.94,227.79,2.52]
[1732684891394,2.1945,227.92,227.79,2.52]
[1732684891594,16.14389318,227.94,227.79,2.52]
[1732684891795,18.66389318,227.94,227.79,2.52]
[1732684891996,2.52,227.98,227.93,2.1944]
[1732684892198,2.52,228.03,227.87,2.52]
[1732684892396,16.14389318,228.07,227.89,16.14389318]
[1732684892397,20.85699318,228.07,227.89,16.14389318]
[1732684892701,20.85699318,228.07,227.9,2.64]
[1732684892702,2.52,228.07,227.9,2.64]
[1732684893089,18.66389318,228.07,227.9,2.64]
[1732684893694,2.52,228.07,227.95,2.1942]
[1732684893893,2.52,228.07,227.9,2.64]
[1732684894298,2.52,228.07,228.03,2.1934]
[1732684894595,18.66389318,228.07,227.82,1.0975514]
[1732684894796,16.14389318,228.02,227.89,1.3224]
[1732684895094,2.64,228.01,227.91,2.1945]
[1732684895292,2.64,228.01,227.89,1.3224]
[1732684895293,16.14389318,227.98,227.89,1.3224]
[1732684896296,2.64,228.01,227.89,1.3224]
[1732684897200,16.14389318,228.02,227.89,1.3224]
[1732684897499,2.64,228.03,227.89,3.9624]
[1732684897694,16.14389318,228.1,227.9,16.14389318]
[1732684897894,2.64,228.09,227.89,20.10629318]
[1732684898104,2.1931,228.07,227.95,2.1942]
[1732684898398,2.64,228.09,227.89,20.10629318]
[1732684899401,2.1931,228.06,228.0,2.1937]
[1732684899604,16.14389318,228.06,227.89,20.10629318]
[1732684899799,16.14389318,228.06,227.9,1.2471]
[1732684900098,2.1938,228.0,227.93,2.1943]
[1732684900500,2.64,228.01,227.9,1.2471]
[1732684900700,16.14389318,228.02,227.94,2.1942]
[1732684900900,2.64,228.01,227.94,2.1942]
[1732684901505,2.64,228.01,227.95,2.1941]
[1732684902701,2.64,228.01,227.9,1.2471]
[1732684902897,16.14389318,228.06,227.9,1.2471]
[1732684903205,18.33699318,228.06,227.99,2.1938]
[1732684903404,16.14389318,228.06,227.9,1.2471]
[1732684903795,2.1934,228.03,227.9,1.2471]
[1732684904399,18.78389318,228.02,227.9,3.8871]
[1732684904801,2.1939,227.98,227.91,2.1945]
[1732684905101,18.78389318,228.02,227.9,1.2471]
[1732684905508,18.78389318,228.02,227.93,2.1944]
[1732684905804,18.78389318,228.02,227.9,1.2471]
[1732684906005,16.14389318,227.98,227.9,1.2471]
[1732684906998,18.33789318,227.98,227.9,1.2471]
[1732684907401,16.14389318,227.98,227.9,1.2471]
[1732684908106,2.1941,227.96,227.9,1.2471]
[1732684908500,16.14389318,227.98,227.86,1.3263]
[1732684908704,2.1942,227.96,227.89,2.1947]
[1732684908904,4.8342,227.96,227.89,2.1947]
[1732684909104,4.8342,227.96,227.86,1.3263]
[1732684910407,4.8342,227.96,227.9,2.1947]
[1732684910703,2.64,227.96,227.86,1.3263]
[1732684911010,14.3485,228.13,227.86,17.47019318]
[1732684911011,16.14389318,228.06,227.86,17.47019318]
[1732684911305,2.64,228.05,227.86,17.47019318]
[1732684911503,16.14389318,228.06,227.86,17.47019318]
[1732684911504,2.64,228.04,227.86,17.47019318]
[1732684912407,18.78389318,228.06,227.86,17.47019318]
[1732684912610,2.1932,228.05,227.92,2.1944]
[1732684912910,2.1932,228.05,227.93,5.1366]
[1732684913109,2.1932,228.05,227.94,2.64]
[1732684913410,2.1932,228.05,227.99,2.1937]
[1732684914003,18.78389318,228.06,227.97,2.194]
[1732684914004,2.1935,228.03,227.97,2.194]
[1732684914406,2.1935,228.03,227.94,2.64]
[1732684914606,2.1935,228.03,227.98,2.1939]
[1732684914802,2.1935,228.02,227.94,2.64]
[1732684915009,2.1935,228.02,227.97,2.194]
[1732684915705,2.1934,228.04,227.98,2.1939]
[1732684916610,2.1934,228.03,227.98,2.1939]
[1732684917205,1.2185,228.13,228.03,2.1934]
[1732684917206,2.193,228.08,228.03,2.1934]
[1732684920411,2.64,228.09,228.03,2.1934]
[1732684921216,2.1929,228.08,228.03,2.1934]
[1732684921615,16.14389318,228.12,227.97,2.5417]
[1732684921820,2.1927,228.11,227.97,2.5417]
[1732684922119,16.14389318,228.08,227.97,3.497]
[1732684922319,2.1934,228.04,227.97,3.497]
[1732684922714,2.1934,228.04,227.97,1.3031]
[1732684923018,2.1932,228.06,227.97,1.3031]
[1732684923418,2.1932,228.06,228.0,2.1936]
[1732684923814,2.54,228.07,227.93,1.2632]
[1732684924013,16.14389318,228.04,227.93,1.2632]
[1732684924212,16.14389318,228.0,227.75,58.31222934]
[1732684924410,2.54,227.99,227.82,3.9634]
[1732684925219,2.54,227.99,227.83,16.14389318]
[1732684926419,2.54,227.99,227.87,2.1949]
[1732684926616,2.54,227.99,227.88,2.54]
[1732684927016,2.1936,228.02,227.95,2.1941]
[1732684927212,2.54,228.03,227.95,2.1941]
[1732684927616,2.54,228.03,227.88,2.54]
[1732684927823,2.1935,228.03,227.96,2.194]
[1732684928221,2.1935,228.03,227.88,2.54]
[1732684928422,2.1935,228.03,227.92,2.1944]
[1732684928625,2.1935,228.03,227.93,3.8218]
[1732684929223,4.7333,228.05,227.99,2.1938]
[1732684929722,2.54,228.05,227.99,2.1938]
[1732684929923,2.1933,228.04,227.99,2.1938]
[1732684930120,2.1933,228.04,227.96,2.1941]
[1732684930321,2.54,228.05,227.93,3.8218]
[1732684930726,2.1934,228.03,227.98,2.1939]
[1732684931523,4.7333,228.05,227.99,2.1938]
[1732684931921,16.14389318,228.08,227.94,2.54]
[1732684932123,36.46086284,228.2,227.94,2.54]
[1732684932124,2.1928,228.1,227.95,16.14389318]
[1732684932327,17.36299318,228.16,227.99,16.14389318]
[1732684932328,2.54,228.13,227.99,16.14389318]
[1732684932523,0.63305861,228.12,228.0,2.54]
[1732684933221,2.54,228.13,228.0,2.54]
[1732684933428,2.1924,228.14,228.08,2.1929]
[1732684933630,0.63317076,228.13,228.08,2.1929]
[1732684933831,2.54,228.16,228.08,2.1929]
[1732684934032,0.63318497,228.15,228.08,2.1929]
[1732684934225,14.3491,228.24,228.03,16.14389318]
[1732684934532,21.54229603,228.23,228.04,3.7732]
[1732684934735,2.192,228.18,228.04,3.7732]
[1732684935035,0.63354637,228.17,228.04,3.7732]
[1732684935230,0.63354637,228.17,228.12,2.1925]
[1732684935822,2.54,228.23,228.08,2.1929]
[1732684936034,16.14389318,228.2,228.08,2.1929]
[1732684936227,2.1922,228.16,228.08,2.1929]
[1732684936427,0.63391604,228.15,228.04,3.7732]
[1732684936628,2.54,228.16,228.04,3.7732]
[1732684936929,2.54,228.16,228.1,2.1927]
[1732684936930,0.63401946,228.15,228.1,2.1927]
[1732684937135,2.54,228.2,228.04,3.7732]
[1732684937430,0.6339315,228.19,228.04,3.7732]
[1732684937626,2.54,228.2,228.12,2.1925]
[1732684937827,0.6338325,228.18,228.12,2.1925]
[1732684938031,2.54,228.21,228.07,16.14389318]
[1732684938333,0.63388045,228.2,228.14,2.1923]
[1732684938731,0.63388045,228.2,228.15,2.1922]
[1732684939129,0.63388045,228.21,228.1,2.54]
[1732684939329,0.63388045,228.19,228.1,2.54]
[1732684939535,0.63388045,228.18,228.12,2.1925]
[1732684939732,2.1917,228.22,228.1,2.54]
[1732684939934,0.63369822,228.21,228.1,2.54]
[1732684940334,0.63369822,228.21,228.11,16.14389318]
[1732684940530,2.54,228.29,228.11,16.14389318]
[1732684940839,0.63381531,228.28,228.11,16.14389318]
[1732684941138,2.82484654,228.27,228.15,2.1922]
[1732684941337,0.63374654,228.26,228.16,5.2384]
[1732684941530,0.63374654,228.26,228.17,2.54]
[1732684941729,2.1912,228.26,228.17,2.54]
[1732684941934,2.54,228.29,228.17,2.54]
[1732684942133,16.77768602,228.28,228.16,2.6984]
[1732684942340,0.63379284,228.27,228.16,2.6984]
[1732684942743,2.82489284,228.28,228.22,2.1916]
[1732684942941,0.63392523,228.27,228.18,2.54]
[1732684943142,2.54,228.32,228.18,2.54]
[1732684943343,2.82474599,228.31,228.24,2.1913]
[1732684943641,0.63394599,228.3,228.24,2.1913]
[1732684943847,2.54,228.35,228.24,2.1913]
[1732684944138,2.54,228.35,228.18,2.54]
[1732684944139,2.1907,228.31,228.18,2.54]
[1732684944547,2.1907,228.31,228.21,2.1916]
[1732684944844,0.63404618,228.3,228.18,2.54]
[1732684945044,2.1909,228.29,228.18,2.54]
[1732684945244,2.54,228.35,228.17,1.276]
[1732684945441,0.63410292,228.34,228.17,1.276]
[1732684945641,13.13,228.31,228.21,2.1917]
[1732684945944,16.14389318,228.28,228.1,2.54]
[1732684946139,3.17410292,228.27,228.11,2.54]
[1732684946347,2.1916,228.22,228.16,2.1921]
[1732684946643,2.54,228.27,228.11,2.54]
[1732684946844,0.63401332,228.26,228.11,2.54]
[1732684947039,2.54,228.26,228.11,2.54]
[1732684947434,18.68389318,228.28,228.11,2.54]
[1732684947641,0.63403824,228.27,228.11,2.54]
[1732684947839,2.1917,228.21,228.16,2.1921]
[1732684948042,31.81389318,228.28,228.08,1.3202]
[1732684948243,0.63392337,228.27,228.1,2.54]
[1732684948544,2.1918,228.2,228.1,2.54]
[1732684948748,31.81389318,228.28,228.08,1.3202]
[1732684949041,16.14389318,228.24,228.12,2.1925]
[1732684949245,0.63405436,228.23,228.09,2.54]
[1732684949438,3.17405436,228.23,228.09,2.54]
[1732684949642,2.192,228.18,228.09,2.54]
[1732684950139,2.1919,228.19,228.14,2.1923]